bitfinex/quotes_SOLUSD_20260109
["timestamp","ask_amount","ask_price","bid_price","bid_amount"]
[1767970213218,11.93070316,136.71,136.68,13.34]
[1767970213423,12.64919234,136.71,136.68,13.34]
[1767970214034,0.71848918,136.71,136.68,13.34]
[1767970214232,0.71848918,136.68,136.65,7.31795124]
[1767970214420,11.93070316,136.67,136.65,13.34]
[1767970214753,18.56796099,136.74,136.65,13.34]
[1767970214754,0.71848918,136.71,136.65,13.34]
[1767970214936,0.71848918,136.71,136.65,25.27070316]
[1767970214937,11.93070316,136.7,136.65,25.27070316]
[1767970215241,0.71848918,136.71,136.65,13.34]
[1767970215427,11.93070316,136.7,136.65,25.27070316]
[1767970215625,12.64919234,136.71,136.66,11.93070316]
[1767970215843,12.64919234,136.71,136.65,13.34]
[1767970216140,12.64919234,136.7,136.63,0.73190368]
[1767970216357,0.28432314,136.74,136.63,0.73190368]
[1767970216358,12.64919234,136.68,136.63,0.73190368]
[1767970216523,12.64919234,136.68,136.65,7.31787795]
[1767970216729,12.64919234,136.68,136.64,20.65814791]
[1767970217125,0.71848918,136.73,136.65,7.31772356]
[1767970217447,12.64919234,136.7,136.65,19.24854779]
[1767970217625,7.3136839,136.73,136.65,19.24854779]
[1767970217626,12.64919234,136.69,136.65,7.31784463]
[1767970217944,12.64919234,136.69,136.66,7.31737246]
[1767970218148,0.71848918,136.69,136.66,19.24807562]
[1767970218326,0.71848918,136.69,136.65,7.3179656]
[1767970218524,0.71848918,136.69,136.66,11.93070316]
[1767970218745,0.71848918,136.69,136.67,13.36]
[1767970219947,19.01304706,136.75,136.68,12.63617164]
[1767970219948,0.73094072,136.75,136.68,12.63617164]
[1767970220130,0.73094072,136.79,136.71,11.93070316]
[1767970220447,11.93070316,136.76,136.72,11.93070316]
[1767970220644,8.04182806,136.79,136.72,11.93070316]
[1767970220645,7.31102192,136.78,136.72,11.93070316]
[1767970220819,11.93070316,136.76,136.72,19.24486106]
[1767970221023,11.93070316,136.76,136.72,11.93070316]
[1767970221222,11.93070316,136.76,136.71,32.60527491]
[1767970221423,11.93070316,136.76,136.71,20.67457175]
[1767970221624,11.93070316,136.75,136.71,20.67457175]
[1767970221822,0.73094072,136.74,136.66,0.70546848]
[1767970222056,11.93070316,136.71,136.67,13.36]
[1767970222238,11.93070316,136.72,136.67,32.60724775]
[1767970222543,7.31261425,136.75,136.67,13.36]
[1767970222749,0.73094072,136.74,136.67,20.6768246]
[1767970222945,11.93070316,136.7,136.66,7.31736011]
[1767970223126,1.01526386,136.74,136.67,13.36]
[1767970223328,11.93070316,136.7,136.67,13.36]
[1767970223739,11.93070316,136.7,136.67,20.67687409]
[1767970223942,11.93070316,136.7,136.67,13.36]
[1767970224240,1.01526386,136.74,136.65,20.6776524]
[1767970224426,11.93070316,136.69,136.65,20.6776524]
[1767970224623,11.93070316,136.69,136.66,0.70546848]
[1767970225051,11.93070316,136.69,136.65,20.6776524]
[1767970225449,0.73094072,136.72,136.65,32.60835556]
[1767970225654,11.93070316,136.69,136.65,33.31382404]
[1767970225834,11.93070316,136.69,136.65,21.38312088]
[1767970226244,11.93070316,136.69,136.65,8.02312088]
[1767970226553,11.93070316,136.69,136.65,21.38312088]
[1767970226755,8.0452063,136.72,136.65,21.38312088]
[1767970226941,11.93070316,136.69,136.65,8.02312088]
[1767970227150,11.93070316,136.69,136.65,21.38312088]
[1767970227654,12.66164388,136.72,136.68,0.70546848]
[1767970227829,0.73094072,136.72,136.68,0.70546848]
[1767970228030,11.93070316,136.71,136.66,12.63617164]
[1767970228237,0.73094072,136.73,136.66,0.70546848]
[1767970228454,11.93070316,136.7,136.66,19.95335972]
[1767970228654,11.93070316,136.69,136.65,20.67786066]
[1767970228856,11.93070316,136.67,136.63,0.70546848]
[1767970229152,11.93070316,136.65,136.62,20.67934991]
[1767970229344,11.93070316,136.66,136.62,21.38481839]
[1767970229855,0.73094072,136.71,136.63,0.70546848]
[1767970229856,11.93070316,136.67,136.63,0.70546848]
[1767970230046,1.01526386,136.72,136.63,0.70546848]
[1767970230358,0.28432314,136.7,136.63,8.02417511]
[1767970230535,1.01526386,136.7,136.63,8.02417511]
[1767970230727,11.93070316,136.67,136.63,8.02417511]
[1767970230931,0.73094072,136.7,136.66,0.70546848]
[1767970231125,0.73094072,136.72,136.67,12.63617164]
[1767970231333,0.73094072,136.72,136.65,13.36]
[1767970231334,0.73094072,136.72,136.7,11.93070316]
[1767970231533,11.93070316,136.74,136.7,11.93070316]
[1767970231835,0.73094072,136.76,136.7,11.93070316]
[1767970231836,11.93070316,136.75,136.7,11.93070316]
[1767970232028,0.73094072,136.74,136.7,11.93070316]
[1767970232228,12.66164388,136.74,136.69,0.70546848]
[1767970232452,0.73094072,136.74,136.7,8.02075743]
[1767970232754,11.93070316,136.74,136.7,8.02075743]
[1767970232962,0.73094072,136.76,136.71,11.93070316]
[1767970232963,12.66164388,136.76,136.71,11.93070316]
[1767970233141,12.66164388,136.76,136.7,26.30897981]
[1767970233347,12.66164388,136.76,136.71,11.93070316]
[1767970233654,0.73094072,136.76,136.7,38.23968297]
[1767970233854,0.73094072,136.76,136.72,0.70282008]
[1767970234237,12.66164388,136.76,136.72,12.63352324]
[1767970234436,12.66164388,136.76,136.72,0.70282008]
[1767970234644,12.66164388,136.76,136.72,8.01660106]
[1767970234847,0.73094072,136.76,136.72,8.01660106]
[1767970235172,11.93070316,136.77,136.72,19.94730422]
[1767970235342,0.73094072,136.76,136.72,19.94730422]
[1767970235548,12.66164388,136.76,136.72,8.01660106]
[1767970235758,12.66164388,136.76,136.72,19.94730422]
[1767970236138,12.66164388,136.76,136.72,8.01660106]
[1767970236340,0.73094072,136.76,136.72,19.94730422]
[1767970236658,0.73094072,136.79,136.75,12.63352324]
[1767970236864,11.93070316,136.8,136.75,12.63352324]
[1767970237049,11.93070316,136.78,136.75,0.70282008]
[1767970237238,0.73094072,136.84,136.76,0.70282008]
[1767970237439,0.73094072,136.84,136.79,12.63352324]
[1767970237752,11.93070316,136.84,136.8,0.70282008]
[1767970237952,8.03624018,136.89,136.82,0.70282008]
[1767970237953,0.73094072,136.89,136.82,0.70282008]
[1767970238360,11.93070316,136.84,136.82,0.70282008]
[1767970238661,8.03609758,136.89,136.81,7.3094072]
[1767970238857,0.28432314,136.88,136.81,19.94293044]
[1767970239164,0.73094072,136.87,136.82,12.63352324]
[1767970239346,11.93070316,136.86,136.82,12.63352324]
[1767970239545,11.93070316,136.86,136.82,0.70282008]
[1767970239741,0.73094072,136.89,136.82,0.70282008]
[1767970239742,0.73094072,136.89,136.83,12.63352324]
[1767970239945,11.93070316,136.86,136.83,0.70282008]
[1767970240359,11.93070316,136.87,136.83,0.70282008]
[1767970240541,11.93070316,136.88,136.84,8.01034252]
[1767970240864,11.93070316,136.86,136.83,8.01101484]
[1767970241076,0.73094072,136.9,136.84,8.01047889]
[1767970241261,11.93070316,136.88,136.84,8.01047889]
[1767970241771,11.93070316,136.89,136.85,0.70282008]
[1767970242074,0.73094072,136.91,136.85,0.70282008]
[1767970242239,0.73094072,136.91,136.87,12.63352324]
[1767970242240,11.93070316,136.91,136.87,12.63352324]
[1767970242439,11.93070316,136.92,136.87,11.93070316]
[1767970242672,11.93070316,136.89,136.86,7.30622249]
[1767970242863,7.30340009,136.93,136.86,7.30622249]
[1767970243040,0.73094072,136.92,136.87,7.30618397]
[1767970243243,11.93070316,136.9,136.87,7.30618397]
[1767970243470,11.93070316,136.91,136.87,8.00900405]
[1767970243848,11.93070316,136.9,136.87,7.30618397]
[1767970244062,11.93070316,136.89,136.85,14.06282008]
[1767970244244,11.93070316,136.89,136.84,30.19972287]
[1767970244449,1.01526386,136.94,136.85,13.34]
[1767970244742,1.01526386,136.94,136.86,0.70282008]
[1767970244941,11.93070316,136.9,136.86,0.70282008]
[1767970245142,11.93070316,136.88,136.85,7.30708906]
[1767970245343,11.93070316,136.87,136.84,21.35044671]
[1767970245557,11.93070316,136.88,136.85,7.30726232]
[1767970245766,11.93070316,136.87,136.84,20.64765119]
[1767970245950,0.28432314,136.91,136.84,13.34]
[1767970246144,11.93070316,136.87,136.84,20.64766353]
[1767970246344,11.93070316,136.86,136.84,13.28000002]
[1767970246550,7.33245135,136.86,136.84,13.28000002]
[1767970246748,7.33245135,136.85,136.84,13.28000002]
[1767970246987,7.33245135,136.85,136.81,7.30921309]
[1767970247274,1.01526386,136.88,136.81,20.64921309]
[1767970247448,7.33245135,136.84,136.81,20.64921309]
[1767970247643,7.33245135,136.84,136.81,7.30921309]
[1767970247884,7.33245135,136.84,136.81,8.01203317]
[1767970248086,1.01526386,136.88,136.81,8.01203317]
[1767970248249,7.33245135,136.85,136.81,8.01203317]
[1767970248755,7.33245135,136.84,136.81,8.01203317]
[1767970249447,7.33245135,136.83,136.8,7.30979912]
[1767970249648,8.32111908,136.88,136.81,7.30936011]
[1767970249852,7.33245135,136.83,136.81,7.30936011]
[1767970250868,8.32111908,136.88,136.8,7.97330665]
[1767970251075,7.33245135,136.84,136.8,7.97330665]
[1767970251453,7.33245135,136.85,136.8,15.305758]
[1767970251757,7.33245135,136.85,136.81,0.66336513]
[1767970251958,1.01526386,136.88,136.81,0.66336513]
[1767970252260,7.33245135,136.85,136.81,0.66336513]
[1767970252982,7.33245135,136.85,136.81,7.99581648]
[1767970253168,0.73094072,136.88,136.83,0.66336513]
[1767970253360,7.33245135,136.86,136.83,0.66336513]
[1767970253565,7.33245135,136.85,136.82,13.34]
[1767970253763,1.01526386,136.9,136.83,0.66336513]
[1767970254076,7.33245135,136.86,136.83,0.66336513]
[1767970254261,1.01526386,136.9,136.82,20.64859408]
[1767970254262,7.33245135,136.85,136.82,20.64859408]
[1767970254576,7.33245135,136.85,136.82,21.31195921]
[1767970255073,7.33245135,136.85,136.82,7.97195921]
[1767970255276,7.33245135,136.84,136.81,7.30923292]
[1767970255483,7.33245135,136.84,136.81,20.64923292]
[1767970255977,0.14216157,136.89,136.82,0.66336513]
[1767970256181,7.33245135,136.86,136.82,0.66336513]
[1767970256477,0.73094072,136.88,136.84,0.66336513]
[1767970256478,7.33245135,136.88,136.84,0.66336513]
[1767970256683,0.73094072,136.89,136.84,0.66336513]
[1767970256976,7.33245135,136.88,136.84,14.00336513]
[1767970257356,0.73094072,136.89,136.84,14.00336513]
[1767970257578,7.33245135,136.9,136.87,0.66336513]
[1767970257970,0.73094072,136.91,136.87,0.66336513]
[1767970258280,7.33245135,136.89,136.85,0.66336513]
[1767970258484,7.33245135,136.89,136.85,15.30297806]
[1767970258660,7.33245135,136.89,136.86,0.66336513]
[1767970258861,7.33245135,136.89,136.86,7.97008031]
[1767970259078,7.33245135,136.9,136.86,0.66336513]
[1767970259380,7.33245135,136.9,136.86,7.99581648]
[1767970259680,0.73094072,136.92,136.87,28.64201433]
[1767970259681,7.33245135,136.91,136.87,28.64201433]
[1767970259860,7.33245135,136.91,136.87,21.33581648]
[1767970260260,0.73094072,136.92,136.89,0.66336513]
[1767970260456,7.33245135,136.94,136.91,0.66336513]
[1767970260655,7.33245135,136.92,136.88,0.66336513]
[1767970260871,0.73094072,136.93,136.86,0.66336513]
[1767970260872,7.33245135,136.9,136.86,0.66336513]
[1767970261063,7.33245135,136.9,136.86,7.33245135]
[1767970261266,0.73094072,136.93,136.88,0.66336513]
[1767970261267,7.33245135,136.92,136.88,0.66336513]
[1767970261571,7.33245135,136.89,136.86,14.00336513]
[1767970261775,1.01526386,136.94,136.86,0.66336513]
[1767970262093,25.56050536,136.93,136.86,0.66336513]
[1767970262260,0.73094072,136.92,136.85,13.34]
[1767970262466,7.33245135,136.91,136.87,0.66336513]
[1767970262665,7.33245135,136.9,136.85,14.01850347]
[1767970262875,8.06339207,136.89,136.84,20.67245135]
[1767970263066,8.06339207,136.89,136.81,0.67850347]
[1767970263067,7.33245135,136.85,136.81,0.67850347]
[1767970263381,1.01526386,136.89,136.81,0.67850347]
[1767970263590,7.33245135,136.86,136.81,15.32032384]
[1767970263771,7.33245135,136.84,136.81,0.67850347]
[1767970263962,7.33245135,136.85,136.81,8.01095482]
[1767970264163,7.33245135,136.86,136.81,15.32033078]
[1767970264675,7.33245135,136.86,136.82,0.67850347]
[1767970264879,0.73094072,136.87,136.83,0.67850347]
[1767970265069,0.73094072,136.87,136.81,13.34]
[1767970265070,7.33245135,136.89,136.86,0.67850347]
[1767970265272,6.6801107,136.94,136.84,7.33245135]
[1767970265273,8.06339207,136.88,136.84,7.33245135]
[1767970265468,7.33245135,136.89,136.85,7.33245135]
[1767970265673,0.11527982,136.9,136.85,7.33245135]
[1767970265674,7.33245135,136.9,136.85,7.33245135]
[1767970265868,7.33245135,136.9,136.86,7.33245135]
[1767970266075,0.73094072,136.93,136.88,7.33245135]
[1767970266277,7.33245135,136.93,136.88,14.6378241]
[1767970266477,0.73094072,136.94,136.89,7.33245135]
[1767970266685,7.33245135,136.94,136.9,7.33245135]
[1767970266869,0.2,136.96,136.9,7.33245135]
[1767970266870,0.93094072,136.96,136.9,7.33245135]
[1767970267191,7.33245135,136.93,136.89,14.01850347]
[1767970267365,0.73094072,136.95,136.89,8.01095482]
[1767970267565,7.53245135,136.96,136.92,0.67850347]
[1767970267776,7.53245135,136.96,136.92,0.65169289]
[1767970268173,7.33245135,136.95,136.92,0.65169289]
[1767970268369,7.33245135,136.93,136.86,18.26654786]
[1767970268574,7.33245135,136.92,136.88,13.34]
[1767970268768,7.33245135,136.91,136.88,13.34]
[1767970268969,7.33245135,136.89,136.87,13.34]
[1767970269168,7.33245135,136.9,136.87,13.34]
[1767970269589,7.33245135,136.92,136.87,20.67245135]
[1767970269766,7.33245135,136.91,136.88,0.67850347]
[1767970269966,7.33245135,136.9,136.88,0.67850347]
[1767970270579,0.14155953,136.92,136.87,13.34]
[1767970270886,7.33245135,136.88,136.86,13.34]
[1767970271118,7.33245135,136.87,136.85,0.67850347]
[1767970271587,1.01526386,136.9,136.85,0.67850347]
[1767970271892,7.33245135,136.87,136.85,0.67850347]
[1767970272802,7.33245135,136.87,136.84,0.67850347]
[1767970273301,7.33245135,136.87,136.84,7.98626766]
[1767970273605,7.33245135,136.87,136.84,7.98629405]
[1767970274193,8.99452745,136.9,136.84,7.98629405]
[1767970274497,7.33245135,136.85,136.82,0.67850347]
[1767970275707,0.66883544,136.88,136.82,0.67850347]
[1767970275907,7.33245135,136.86,136.82,7.98716389]
[1767970276202,1.6840993,136.88,136.82,7.98716389]
[1767970276407,1.6840993,136.88,136.82,21.32716389]
[1767970276610,7.33245135,136.86,136.83,0.67850347]
[1767970276795,1.39977616,136.88,136.83,0.67850347]
[1767970277183,7.33245135,136.88,136.85,0.67850347]
[1767970277412,0.73094072,136.89,136.85,14.01850347]
[1767970277583,7.33245135,136.89,136.86,0.67850347]
[1767970278195,1.39977616,136.9,136.85,13.34]
[1767970278510,7.33245135,136.86,136.82,7.98716389]
[1767970278690,7.33245135,136.85,136.83,7.30827582]
[1767970278885,7.33245135,136.86,136.83,21.32677929]
[1767970279076,0.73094072,136.88,136.83,21.32677929]
[1767970279275,7.33245135,136.84,136.81,0.67850347]
[1767970279481,7.33245135,136.84,136.77,0.67850347]
[1767970279482,7.33245135,136.82,136.77,0.67850347]
[1767970279702,7.33245135,136.8,136.77,0.67850347]
[1767970280494,7.33245135,136.8,136.77,7.98990832]
[1767970280702,7.33245135,136.81,136.78,14.01850347]
[1767970280899,7.33245135,136.81,136.79,0.67850347]
[1767970281300,7.33245135,136.8,136.78,13.34]
[1767970281496,7.33245135,136.82,136.79,0.67850347]
[1767970281689,0.66883544,136.87,136.82,0.67850347]
[1767970281892,7.33245135,136.86,136.83,13.34]
[1767970282106,7.33245135,136.86,136.82,0.67850347]
[1767970282107,7.33245135,136.84,136.8,0.67850347]
[1767970282280,0.14155953,136.86,136.81,13.34]
[1767970282281,7.33245135,136.83,136.81,13.34]
[1767970282607,7.33245135,136.83,136.81,20.64910899]
[1767970282985,7.48434706,136.82,136.8,13.34]
[1767970283193,0.15189571,136.82,136.79,13.34]
[1767970283395,7.33245135,136.81,136.79,13.34]
[1767970283625,0.67421526,136.84,136.79,20.65043278]
[1767970283801,7.33245135,136.83,136.79,20.65043278]
[1767970284309,0.67421526,136.84,136.79,20.65043278]
[1767970284708,7.33245135,136.82,136.79,20.65043278]
[1767970284911,7.33245135,136.8,136.76,0.67850347]
[1767970285112,7.33245135,136.79,136.77,13.34]
[1767970285287,7.33245135,136.79,136.76,7.99025842]
[1767970285611,7.33245135,136.81,136.78,7.31099388]
[1767970286312,0.66883544,136.82,136.78,7.31099388]
[1767970286511,7.33245135,136.81,136.78,7.31099388]
[1767970286812,0.14677956,136.79,136.74,0.67850347]
[1767970286989,7.33245135,136.77,136.75,13.34]
[1767970287189,7.33245135,136.78,136.75,20.65231202]
[1767970287395,0.28432314,136.81,136.75,20.65231202]
[1767970287396,0.28432314,136.81,136.76,0.67850347]
[1767970287600,6.60745135,136.77,136.76,0.67850347]
[1767970287896,0.9585384,136.81,136.76,0.67850347]
[1767970288113,7.33245135,136.77,136.74,0.67850347]
[1767970288413,7.33245135,136.78,136.75,20.6522063]
[1767970288911,7.33245135,136.78,136.75,13.34]
[1767970289216,7.33245135,136.78,136.75,20.65250636]
[1767970289417,0.67421526,136.8,136.75,20.65250636]
[1767970289610,7.33245135,136.78,136.75,20.65250636]
[1767970289810,0.67421526,136.8,136.75,20.65250636]
[1767970290310,7.33245135,136.78,136.75,20.65250636]
[1767970290709,7.33245135,136.76,136.72,0.67850347]
[1767970290893,7.33245135,136.75,136.72,7.99264825]
[1767970291427,7.33245135,136.74,136.71,13.34]
[1767970291599,7.33245135,136.73,136.7,13.34]
[1767970291997,0.67421526,136.75,136.7,13.34]
[1767970292223,7.33245135,136.73,136.7,13.34]
[1767970293101,7.33245135,136.73,136.69,7.99409934]
[1767970293301,7.33245135,136.73,136.7,20.65512656]
[1767970293697,7.33245135,136.73,136.7,13.34]
[1767970293904,7.33245135,136.72,136.7,13.34]
[1767970294412,7.33245135,136.71,136.67,7.41669411]
[1767970294616,7.30245133,136.7,136.68,13.34]
[1767970294813,7.27245134,136.7,136.68,13.34]
[1767970295213,7.33245135,136.71,136.68,13.34]
[1767970295410,7.33245135,136.71,136.68,20.65633308]
[1767970295609,8.11028003,136.74,136.68,20.65633308]
[1767970295816,7.33245135,136.73,136.68,28.66780603]
[1767970296013,7.33245135,136.72,136.68,0.6790216]
[1767970296212,7.33245135,136.7,136.67,21.43561054]
[1767970296417,7.33245135,136.7,136.68,7.31635804]
[1767970296606,7.33245135,136.7,136.67,8.09571867]
[1767970296802,7.33245135,136.7,136.67,13.44]
[1767970297006,7.33245135,136.7,136.67,20.75688843]
[1767970297198,7.33245135,136.7,136.67,7.41688843]
[1767970297402,7.33245135,136.69,136.67,0.1]
[1767970298627,7.33245135,136.69,136.67,7.41677647]
[1767970298835,7.33245135,136.69,136.67,0.1]
[1767970299008,7.33245135,136.7,136.67,0.1]
[1767970299315,0.6549235,136.73,136.68,8.01147295]
[1767970299510,0.6549235,136.73,136.67,0.1]
[1767970299511,7.33245135,136.69,136.67,13.46]
[1767970299816,7.33245135,136.68,136.67,0.1]
[1767970300016,0.6549235,136.7,136.67,0.1]
[1767970300205,7.33245135,136.69,136.67,0.1]
[1767970300411,0.28432314,136.72,136.68,7.33245135]
[1767970300412,7.98737485,136.72,136.68,7.33245135]
[1767970300725,7.33245135,136.72,136.67,8.11147295]
[1767970300924,1.38586422,136.73,136.69,7.31582412]
[1767970301138,0.73094072,136.74,136.7,8.01147295]
[1767970301430,0.6549235,136.79,136.73,7.33245135]
[1767970301733,0.6549235,136.79,136.76,7.33245135]
[1767970302026,7.33245135,136.8,136.76,7.33245135]
[1767970302328,7.33245135,136.8,136.75,20.69245135]
[1767970302518,7.33245135,136.78,136.75,13.36]
[1767970302710,0.6549235,136.79,136.75,20.69245135]
[1767970302920,7.33245135,136.8,136.75,20.69245135]
[1767970303117,7.33245135,136.8,136.76,7.31207955]
[1767970303427,7.33245135,136.8,136.76,32.92472978]
[1767970303635,7.98737485,136.82,136.77,7.33245135]
[1767970303827,0.67178719,136.81,136.77,7.33245135]
[1767970304128,0.67178719,136.81,136.78,13.36]
[1767970304336,7.33245135,136.8,136.78,13.36]
[1767970304519,7.98737485,136.8,136.76,7.31207955]
[1767970304717,8.65916204,136.79,136.77,13.36]
[1767970304918,7.98737485,136.79,136.77,13.36]
[1767970305119,7.33245135,136.81,136.77,27.27899627]
[1767970305827,7.33245135,136.82,136.78,8.01147295]
[1767970306622,7.33245135,136.82,136.77,45.55785859]
[1767970306825,8.00423854,136.83,136.79,0.6790216]
[1767970307023,7.33245135,136.83,136.79,0.6790216]
[1767970307334,0.6549235,136.79,136.72,0.6790216]
[1767970307518,7.33245135,136.76,136.73,21.3527055]
[1767970308035,7.33245135,136.76,136.74,0.69044802]
[1767970308233,0.6549235,136.79,136.74,0.69044802]
[1767970308425,0.67178719,136.83,136.75,0.69044802]
[1767970308426,0.66958966,136.82,136.75,0.69044802]
[1767970308737,6.96443384,136.84,136.76,25.97660772]
[1767970308738,1.34137685,136.81,136.76,25.97660772]
[1767970308933,0.66958966,136.8,136.76,25.2861597]
[1767970309132,0.66958966,136.8,136.76,20.67165846]
[1767970309735,12.59574936,136.79,136.76,20.67165846]
[1767970310042,12.59574936,136.79,136.76,7.31165846]
[1767970310242,11.9261597,136.79,136.76,7.31165846]
[1767970310441,11.9261597,136.81,136.76,37.51801704]
[1767970310643,12.59794689,136.8,136.76,20.67165846]
[1767970310819,0.67178719,136.8,136.76,32.59781816]
[1767970311019,11.9261597,136.8,136.76,32.59781816]
[1767970311429,0.67178719,136.82,136.76,32.59781816]
[1767970311634,12.59794689,136.82,136.76,39.64230536]
[1767970311941,0.67178719,136.82,136.79,12.61660772]
[1767970312130,11.9261597,136.85,136.81,11.9261597]
[1767970313135,11.9261597,136.85,136.81,19.23518532]
[1767970313524,12.20812376,136.83,136.79,20.65025907]
[1767970313726,12.20812376,136.83,136.79,19.23641877]
[1767970314027,12.20812376,136.83,136.79,25.2661597]
[1767970314238,0.28196406,136.83,136.8,7.30961811]
[1767970314547,1.33362474,136.82,136.77,11.9261597]
[1767970314734,13.25978444,136.82,136.79,13.34]
[1767970314937,12.2042479,136.83,136.79,13.34]
[1767970315138,13.26362154,136.82,136.79,13.34]
[1767970316144,0.67178719,136.82,136.79,32.576596]
[1767970316349,0.66958966,136.86,136.79,21.34088432]
[1767970316534,0.66958966,136.88,136.81,0.69044802]
[1767970316725,11.9261597,136.85,136.81,12.61660772]
[1767970316926,11.9261597,136.85,136.82,13.34]
[1767970317128,11.9261597,136.86,136.82,20.64867787]
[1767970317325,12.2042479,136.87,136.82,32.57483757]
[1767970317538,0.2780882,136.87,136.83,11.9261597]
[1767970317958,0.2780882,136.87,136.82,51.53746801]
[1767970317959,12.2042479,136.87,136.82,51.53746801]
[1767970318257,12.2042479,136.87,136.83,11.9261597]
[1767970318654,11.9261597,136.86,136.82,51.53746801]
[1767970318839,12.59183435,136.86,136.82,32.57483757]
[1767970319038,0.66567465,136.86,136.82,19.23483757]
[1767970319241,0.66567465,136.86,136.82,32.57483757]
[1767970319449,12.59183435,136.86,136.82,20.64867787]
[1767970319639,11.9261597,136.85,136.82,20.64867787]
[1767970319852,0.66567465,136.86,136.82,20.64867787]
[1767970320058,11.9261597,136.85,136.82,20.64867787]
[1767970320365,11.9261597,136.85,136.73,85.19300338]
[1767970320366,0.6580768,136.82,136.77,0.69044802]
[1767970320559,12.59574936,136.86,136.81,12.61660772]
[1767970320745,12.2042479,136.85,136.8,43.54017523]
[1767970320943,12.2042479,136.85,136.81,7.30927733]
[1767970321140,11.9261597,136.84,136.81,7.30927733]
[1767970321342,0.2780882,136.85,136.81,19.23543703]
[1767970321557,0.28432314,136.87,136.84,11.9261597]
[1767970321558,0.66958966,136.87,136.84,11.9261597]
[1767970321761,0.66567465,136.88,136.82,0.69044802]
[1767970321964,12.20812376,136.87,136.82,0.69044802]
[1767970322153,12.58799725,136.86,136.82,11.9261597]
[1767970322349,11.9261597,136.83,136.8,7.30982474]
[1767970322553,11.9261597,136.83,136.8,20.64982474]
[1767970322972,0.6580768,136.84,136.77,7.31133491]
[1767970323185,0.67090647,136.81,136.77,7.31123112]
[1767970323472,11.9261597,136.78,136.76,7.3118839]
[1767970323680,0.27678456,136.8,136.76,7.3118839]
[1767970323842,11.9261597,136.79,136.76,7.3118839]
[1767970324043,7.63534031,136.84,136.78,0.70615676]
[1767970324364,11.9261597,136.85,136.8,0.70615676]
[1767970324550,0.67090647,136.86,136.8,12.63231646]
[1767970324747,11.9261597,136.84,136.8,12.63231646]
[1767970324953,12.59706617,136.86,136.82,11.9261597]
[1767970325158,0.67090647,136.86,136.82,11.9261597]
[1767970325468,11.9261597,136.86,136.83,7.30833881]
[1767970325774,11.9261597,136.84,136.79,0.70615676]
[1767970325978,11.9261597,136.81,136.79,13.34]
[1767970326381,11.9261597,136.82,136.79,13.34]
[1767970326760,11.9261597,136.82,136.79,20.65029312]
[1767970327179,11.9261597,136.83,136.79,51.55879935]
[1767970327382,11.9261597,136.82,136.79,20.65029312]
[1767970327559,11.9261597,136.81,136.79,13.34]
[1767970327876,11.9261597,136.82,136.79,20.65045568]
[1767970328586,0.28432314,136.86,136.79,21.35661244]
[1767970328777,11.9261597,136.82,136.79,21.35661244]
[1767970328979,11.9261597,136.81,136.79,13.34]
[1767970329179,11.9261597,136.82,136.79,20.6503959]
[1767970329365,11.9261597,136.83,136.8,0.70615676]
[1767970329684,0.27678456,136.85,136.8,0.6461568]
[1767970330088,11.9261597,136.83,136.79,50.85274537]
[1767970330255,0.27678456,136.85,136.79,25.58658567]
[1767970330459,11.9261597,136.83,136.8,13.34]
[1767970330658,0.67090647,136.84,136.8,13.34]
[1767970330859,11.9261597,136.83,136.8,13.34]
[1767970331270,11.9261597,136.83,136.8,20.64950111]
[1767970331565,11.9261597,136.81,136.79,7.31016655]
[1767970332070,0.81306804,136.85,136.8,7.30967955]
[1767970332264,11.9261597,136.83,136.8,7.30967955]
[1767970332766,0.47834609,136.86,136.81,0.70615676]
[1767970332964,11.9261597,136.83,136.79,21.35654807]
[1767970333179,11.9261597,136.8,136.78,7.3106933]
[1767970333382,11.9261597,136.79,136.77,7.31136754]
[1767970333558,11.9261597,136.78,136.76,7.31175637]
[1767970333761,11.9261597,136.77,136.74,13.34]
[1767970334083,11.9261597,136.76,136.74,7.31280596]
[1767970334271,11.9261597,136.75,136.72,7.31400224]
[1767970334469,11.9261597,136.73,136.7,8.02127611]
[1767970334965,11.9261597,136.73,136.7,7.31511935]
[1767970335175,11.9261597,136.72,136.69,14.04615676]
[1767970335473,0.38332314,136.76,136.71,0.70615676]
[1767970335670,0.38332314,136.76,136.7,8.02114765]
[1767970335671,11.9261597,136.73,136.7,8.02114765]
[1767970335871,11.9261597,136.72,136.7,8.02114765]
[1767970336363,11.9261597,136.72,136.7,7.31499089]
[1767970336884,0.55332286,136.75,136.7,7.31499089]
[1767970337180,11.9261597,136.72,136.7,7.31499089]
[1767970337381,11.9261597,136.73,136.7,7.31499089]
[1767970337770,11.9261597,136.74,136.71,0.70615676]
[1767970338077,0.38332314,136.76,136.71,0.70615676]
[1767970338285,11.9261597,136.74,136.71,0.70615676]
[1767970338584,11.9261597,136.76,136.72,0.70615676]
[1767970338880,11.9261597,136.74,136.71,13.34]
[1767970339082,0.54882507,136.75,136.7,13.34]
[1767970339263,11.9261597,136.71,136.67,0.1]
[1767970339580,11.9261597,136.69,136.67,0.1]